fUSD/lending_fUSD_20250105
["ID","MTS","AMOUNT","RATE_DAILY","PERIOD"]
[347718818,1736080255022,-500.0,8.493e-05,2]
[347718819,1736080255031,-500.0,8.493e-05,2]
[347718820,1736080255040,-5863.8,8.493e-05,2]
[347718821,1736080255050,-500.0,8.493e-05,2]
[347718822,1736080255058,-500.0,8.493e-05,2]
[347718823,1736080255067,-500.0,8.493e-05,2]
[347718824,1736080255081,-580.01,8.493e-05,2]
[347718825,1736080255091,-500.0,8.493e-05,2]
[347718826,1736080255100,-500.0,8.493e-05,2]
[347718827,1736080255110,-1582.22,8.493e-05,2]
[347718828,1736080255120,-1585.45,8.493e-05,2]
[347718829,1736080255130,-500.0,8.493e-05,2]
[347718830,1736080255140,-585.5,8.493e-05,2]
[347718831,1736080255150,-500.0,8.493e-05,2]
[347718832,1736080255161,-500.0,8.493e-05,2]
[347718833,1736080255170,-500.0,8.493e-05,2]
[347718834,1736080255180,-1155.62,8.493e-05,2]
[347718835,1736080255189,-500.0,8.493e-05,2]
[347718836,1736080255199,-500.0,8.493e-05,2]
[347718837,1736080255209,-500.0,8.493e-05,2]
[347718838,1736080255219,-500.0,8.493e-05,2]
[347718839,1736080255230,-1461.86,8.493e-05,2]
[347718840,1736080255240,-500.0,8.493e-05,2]
[347718841,1736080255249,-961.26,8.493e-05,2]
[347718842,1736080255259,-500.0,8.493e-05,2]
[347718843,1736080255269,-500.0,8.493e-05,2]
[347718844,1736080255279,-500.0,8.493e-05,2]
[347718845,1736080255288,-1871.76,8.493e-05,2]
[347718846,1736080255297,-500.0,8.493e-05,2]
[347718847,1736080255307,-1799.53,8.493e-05,2]
[347718848,1736080255316,-500.0,8.493e-05,2]
[347718849,1736080255326,-3231.73,8.493e-05,2]
[347718850,1736080255336,-2942.46,8.493e-05,2]
[347718851,1736080255346,-500.0,8.493e-05,2]
[347718852,1736080255356,-1885.48,8.493e-05,2]
[347718853,1736080255365,-500.0,8.493e-05,2]
[347718854,1736080255375,-1405.92,8.493e-05,2]
[347718855,1736080255385,-1469.95,8.493e-05,2]
[347718856,1736080255395,-500.0,8.493e-05,2]
[347718857,1736080255405,-500.0,8.493e-05,2]
[347718858,1736080255415,-166.470841,8.493e-05,2]
[347718859,1736080255425,-500.0,8.493e-05,2]
[347718860,1736080255435,-500.0,8.493e-05,2]
[347718861,1736080255444,-1575.04,8.493e-05,2]
[347718862,1736080255454,-500.0,8.493e-05,2]
[347718863,1736080255463,-840.02,8.493e-05,2]
[347718864,1736080255473,-638.18,8.493e-05,2]
[347718865,1736080255483,-1377.53,8.493e-05,2]
[347718866,1736080255493,-279.785588,8.493e-05,2]
[347718867,1736080255502,-547.41,8.493e-05,2]
[347718868,1736080255512,-500.0,8.493e-05,2]
[347718869,1736080255521,-500.0,8.493e-05,2]
[347718870,1736080255531,-1410.84,8.493e-05,2]
[347718871,1736080255541,-4365.11,8.493e-05,2]
[347718872,1736080255551,-5404.76,8.493e-05,2]
[347718873,1736080255561,-500.0,8.493e-05,2]
[347718874,1736080255570,-500.0,8.493e-05,2]
[347718875,1736080255579,-763.6,8.493e-05,2]
[347718876,1736080255589,-2101.99,8.493e-05,2]
[347718877,1736080255598,-933.04,8.493e-05,2]
[347718878,1736080255607,-3640.96,8.493e-05,2]
[347718879,1736080255617,-1904.35,8.493e-05,2]
[347718880,1736080255627,-500.0,8.493e-05,2]
[347718881,1736080255636,-7062.77,8.493e-05,2]
[347718882,1736080255646,-227.455484,8.493e-05,2]
[347718883,1736080255656,-500.0,8.493e-05,2]
[347718884,1736080255665,-701.42,8.493e-05,2]
[347718885,1736080255675,-5709.24,8.493e-05,2]
[347718886,1736080255685,-533.13903372,8.493e-05,2]
[347718887,1736080255694,-500.0,8.493e-05,2]
[347718888,1736080255704,-640.06,8.493e-05,2]
[347718889,1736080255715,-500.0,8.493e-05,2]
[347718890,1736080255725,-500.0,8.493e-05,2]
[347718891,1736080255734,-500.0,8.493e-05,2]
[347718892,1736080255744,-266.669325,8.493e-05,2]
[347718893,1736080255753,-1911.33,8.493e-05,2]
[347718894,1736080255763,-748.87,8.493e-05,2]
[347718895,1736080255772,-500.0,8.493e-05,2]
[347718896,1736080255782,-828.14,8.493e-05,2]
[347718897,1736080255792,-1200.99,8.493e-05,2]
[347718898,1736080255801,-1150.44,8.493e-05,2]
[347718899,1736080255811,-500.0,8.493e-05,2]
[347718900,1736080255820,-828.55,8.493e-05,2]
[347718901,1736080255830,-500.0,8.493e-05,2]
[347718902,1736080255840,-500.0,8.493e-05,2]
[347718903,1736080255849,-500.0,8.493e-05,2]
[347718904,1736080255859,-1799.4,8.493e-05,2]
[347718905,1736080255868,-714.07,8.493e-05,2]
[347718906,1736080255878,-1583.56,8.493e-05,2]
[347718907,1736080255887,-302.37876,8.493e-05,2]
[347718908,1736080255896,-1020.12,8.493e-05,2]
[347718909,1736080255906,-196.822112,8.493e-05,2]
[347718910,1736080255915,-1018.3,8.493e-05,2]
[347718911,1736080255924,-500.0,8.493e-05,2]
[347718912,1736080255934,-500.0,8.493e-05,2]
[347718913,1736080255943,-1355.56,8.493e-05,2]
[347718914,1736080255953,-509.36,8.493e-05,2]
[347718915,1736080255962,-1376.77,8.493e-05,2]
[347718916,1736080255972,-740.97,8.493e-05,2]
[347718917,1736080255983,-3441.71,8.493e-05,2]
[347718918,1736080255993,-500.0,8.493e-05,2]
[347718919,1736080256004,-397.17621707,8.493e-05,2]
[347718920,1736080256014,-500.0,8.493e-05,2]
[347718921,1736080256025,-403.496734,8.493e-05,2]
[347718922,1736080256035,-4247.23,8.493e-05,2]
[347718923,1736080256048,-500.0,8.493e-05,2]
[347718924,1736080256058,-1579.74,8.493e-05,2]
[347718925,1736080256067,-500.0,8.493e-05,2]
[347718926,1736080256083,-262.398612,8.493e-05,2]
[347718927,1736080256094,-500.0,8.493e-05,2]
[347718928,1736080256103,-500.0,8.493e-05,2]
[347718929,1736080256113,-6176.17,8.493e-05,2]
[347718930,1736080256124,-1339.61,8.493e-05,2]
[347718931,1736080256134,-5569.09,8.493e-05,2]
[347718932,1736080256145,-500.0,8.493e-05,2]
[347718933,1736080256155,-500.0,8.493e-05,2]
[347718934,1736080256165,-500.0,8.493e-05,2]
[347718935,1736080256175,-1345.73,8.493e-05,2]
[347718936,1736080256184,-500.0,8.493e-05,2]
[347718937,1736080256194,-500.0,8.493e-05,2]
[347718938,1736080256203,-500.0,8.493e-05,2]
[347718939,1736080256214,-2264.7,8.493e-05,2]
[347718940,1736080256225,-500.0,8.493e-05,2]
[347718941,1736080256236,-500.0,8.493e-05,2]
[347718942,1736080256246,-500.0,8.493e-05,2]
[347718943,1736080256256,-406.415372,8.493e-05,2]
[347718944,1736080256267,-4625.69,8.493e-05,2]
[347718945,1736080256278,-500.0,8.493e-05,2]
[347718946,1736080256288,-8692.91,8.493e-05,2]
[347718947,1736080256298,-5484.28,8.493e-05,2]
[347718948,1736080256308,-500.0,8.493e-05,2]
[347718949,1736080256319,-500.0,8.493e-05,2]
[347718950,1736080256330,-500.0,8.493e-05,2]
[347718951,1736080256339,-2464.9,8.493e-05,2]
[347718952,1736080256349,-500.0,8.493e-05,2]
[347718953,1736080256358,-1926.73,8.493e-05,2]
[347718954,1736080256368,-373.380789,8.493e-05,2]
[347718955,1736080256377,-500.0,8.493e-05,2]
[347718956,1736080256387,-961.41,8.493e-05,2]
[347718957,1736080256395,-4535.54,8.493e-05,2]
[347718958,1736080256404,-500.0,8.493e-05,2]
[347718959,1736080256414,-720.32,8.493e-05,2]
[347718960,1736080256423,-500.0,8.493e-05,2]
[347718961,1736080256433,-2106.21,8.493e-05,2]
[347718962,1736080256443,-500.0,8.493e-05,2]
[347718963,1736080256452,-363.996706,8.493e-05,2]
[347718964,1736080256463,-500.0,8.493e-05,2]
[347718965,1736080256474,-500.0,8.493e-05,2]
[347718966,1736080256484,-500.0,8.493e-05,2]
[347718967,1736080256493,-11442.77,8.493e-05,2]
[347718968,1736080256503,-500.0,8.493e-05,2]
[347718969,1736080256512,-500.0,8.493e-05,2]
[347718970,1736080256522,-546.61,8.493e-05,2]
[347718971,1736080256531,-383.842017,8.493e-05,2]
[347718972,1736080256540,-2532.99,8.493e-05,2]
[347718973,1736080256550,-500.0,8.493e-05,2]
[347718974,1736080256559,-9637.35,8.493e-05,2]
[347718975,1736080256569,-4231.29,8.493e-05,2]
[347718976,1736080256578,-500.0,8.493e-05,2]
[347718977,1736080256588,-1051.2,8.493e-05,2]
[347718978,1736080256598,-4818.98,8.493e-05,2]
[347718979,1736080256607,-500.0,8.493e-05,2]
[347718980,1736080256617,-500.0,8.493e-05,2]
[347718981,1736080256627,-6872.93,8.493e-05,2]
[347718982,1736080256637,-500.0,8.493e-05,2]
[347718983,1736080256646,-683.79,8.493e-05,2]
[347718984,1736080256656,-2131.59,8.493e-05,2]
[347718985,1736080256666,-3854.52,8.493e-05,2]
[347718986,1736080256675,-1024.77,8.493e-05,2]
[347718987,1736080256686,-500.0,8.493e-05,2]
[347718988,1736080256695,-347.473515,8.493e-05,2]
[347718989,1736080256705,-1786.19,8.493e-05,2]
[347718990,1736080256715,-500.0,8.493e-05,2]
[347718991,1736080256725,-500.0,8.493e-05,2]
[347718992,1736080256734,-500.0,8.493e-05,2]
[347718993,1736080256743,-1701.13,8.493e-05,2]
[347718994,1736080256753,-313.541995,8.493e-05,2]
[347718995,1736080256762,-1339.3,8.493e-05,2]
[347718996,1736080256772,-500.0,8.493e-05,2]
[347718997,1736080256781,-835.79,8.493e-05,2]
[347718998,1736080256791,-500.0,8.493e-05,2]
[347718999,1736080256800,-500.0,8.493e-05,2]
[347719000,1736080256810,-500.0,8.493e-05,2]
[347719001,1736080256820,-1685.25,8.493e-05,2]
[347719002,1736080256829,-500.0,8.493e-05,2]
[347719003,1736080256838,-1089.27,8.493e-05,2]
[347719004,1736080256848,-1600.55,8.493e-05,2]
[347719005,1736080256857,-500.0,8.493e-05,2]
[347719006,1736080256867,-500.0,8.493e-05,2]
[347719007,1736080256876,-5934.43,8.493e-05,2]
[347719008,1736080256885,-500.0,8.493e-05,2]
[347719009,1736080256895,-500.0,8.493e-05,2]
[347719010,1736080256904,-500.0,8.493e-05,2]
[347719011,1736080256913,-707.48,8.493e-05,2]
[347719012,1736080256923,-500.0,8.493e-05,2]
[347719013,1736080256932,-269.076453,8.493e-05,2]
[347719014,1736080256942,-500.0,8.493e-05,2]
[347719015,1736080256951,-500.0,8.493e-05,2]
[347719016,1736080256961,-1790.81,8.493e-05,2]
[347719017,1736080256970,-500.0,8.493e-05,2]
[347719018,1736080256980,-500.0,8.493e-05,2]
[347719019,1736080256989,-500.0,8.493e-05,2]
[347719020,1736080256999,-500.0,8.493e-05,2]
[347719021,1736080257008,-500.0,8.493e-05,2]
[347719022,1736080257018,-301.497753,8.493e-05,2]
[347719023,1736080257028,-835.91,8.493e-05,2]
[347719024,1736080257037,-4841.3,8.493e-05,2]
[347719025,1736080257047,-2400.52,8.493e-05,2]
[347719026,1736080257056,-500.0,8.493e-05,2]
[347719027,1736080257068,-500.0,8.493e-05,2]
[347719028,1736080257080,-1248.22,8.493e-05,2]
[347719029,1736080257091,-2011.32,8.493e-05,2]
[347719030,1736080257104,-962.95,8.493e-05,2]
[347719031,1736080257115,-1965.25,8.493e-05,2]
[347719032,1736080257125,-500.0,8.493e-05,2]
[347719033,1736080257135,-1952.71,8.493e-05,2]
[347719034,1736080257144,-500.0,8.493e-05,2]
[347719035,1736080257156,-500.0,8.493e-05,2]
[347719036,1736080257407,-500.0,8.493e-05,2]
[347719037,1736080257418,-3398.38,8.493e-05,2]
[347719038,1736080257427,-234.364125,8.493e-05,2]
[347719039,1736080257436,-500.0,8.493e-05,2]
[347719040,1736080257446,-500.0,8.493e-05,2]
[347719041,1736080257455,-1272.55,8.493e-05,2]
[347719042,1736080257464,-1407.71,8.493e-05,2]
[347719043,1736080257474,-500.0,8.493e-05,2]
[347719044,1736080257483,-1090.97,8.493e-05,2]
[347719045,1736080257494,-1555.1,8.493e-05,2]
[347719046,1736080257503,-5339.17,8.493e-05,2]
[347719047,1736080257512,-260.234757,8.493e-05,2]
[347719048,1736080257522,-500.0,8.493e-05,2]
[347719049,1736080257531,-1632.03,8.493e-05,2]
[347719050,1736080257540,-500.0,8.493e-05,2]
[347719051,1736080257550,-803.51,8.493e-05,2]
[347719052,1736080257559,-500.0,8.493e-05,2]
[347719053,1736080257568,-500.0,8.493e-05,2]
[347719054,1736080257578,-3335.18,8.493e-05,2]
[347719055,1736080257587,-1055.65,8.493e-05,2]
[347719056,1736080257596,-2591.63,8.493e-05,2]
[347719057,1736080257605,-1068.39,8.493e-05,2]
[347719058,1736080257615,-2640.68,8.493e-05,2]
[347719059,1736080257623,-500.0,8.493e-05,2]
[347719060,1736080257633,-2268.33,8.493e-05,2]
[347719061,1736080257642,-1718.32,8.493e-05,2]
[347719062,1736080257651,-790.74,8.493e-05,2]
[347719063,1736080257661,-2393.67,8.493e-05,2]
[347719064,1736080257673,-500.0,8.493e-05,2]
[347719065,1736080257684,-2304.68,8.493e-05,2]
[347719066,1736080257694,-150.0,8.63e-05,2]
[347719067,1736080257705,-150.0,8.63e-05,2]
[347719068,1736080257714,-150.0,8.63e-05,2]
[347719069,1736080257723,-150.0,8.63e-05,2]
[347719070,1736080257732,-150.0,8.668e-05,2]
[347719071,1736080257742,-500.0,8.701e-05,2]
[347719072,1736080257751,-161.66808295,8.701e-05,2]
[347719073,1736080257760,-150.0,8.707e-05,2]
[347719074,1736080257770,-150.0,8.726e-05,2]
[347719075,1736080257780,-150.0,8.745e-05,2]
[347719076,1736080257791,-403.47,8.764e-05,2]
[347719077,1736080257801,-2416.75,8.766e-05,2]
[347719078,1736080257810,-2032.85,8.766e-05,2]
[347719079,1736080257820,-1647.9,8.766e-05,2]
[347719080,1736080257830,-1025.91,8.766e-05,2]
[347719081,1736080257842,-2821.97,8.766e-05,2]
[347719082,1736080257852,-3120.88,8.766e-05,2]
[347719083,1736080257861,-2283.96,8.766e-05,2]
[347719084,1736080257871,-1707.1,8.766e-05,2]
[347719085,1736080257880,-2992.0,8.766e-05,2]
[347719086,1736080257890,-6255.8,8.766e-05,2]
[347719087,1736080257899,-1644.92,8.767e-05,2]
[347719088,1736080257908,-3048.57,8.767e-05,2]
[347719089,1736080257918,-5235.68,8.767e-05,2]
[347719090,1736080257927,-3246.15,8.767e-05,2]
[347719091,1736080257936,-2892.65,8.767e-05,2]
[347719092,1736080257946,-6257.6,8.767e-05,2]
[347719093,1736080257956,-2746.81,8.767e-05,2]
[347719094,1736080257966,-500.0,8.767e-05,2]
[347719095,1736080257975,-500.0,8.767e-05,2]
[347719096,1736080257985,-1616.02,8.767e-05,2]
[347719097,1736080257994,-500.0,8.767e-05,2]
[347719098,1736080258003,-500.0,8.767e-05,2]
[347719099,1736080258012,-500.0,8.767e-05,2]
[347719100,1736080258022,-509.35715949,8.767e-05,2]
[347719101,1736080258032,-500.0,8.767e-05,2]
[347719102,1736080258041,-957.81,8.767e-05,2]
[347719103,1736080258051,-500.0,8.767e-05,2]
[347719104,1736080258060,-500.0,8.767e-05,2]
[347719105,1736080258070,-634.21,8.767e-05,2]
[347719106,1736080258083,-500.0,8.767e-05,2]
[347719107,1736080258092,-628.28,8.767e-05,2]
[347719108,1736080258101,-500.0,8.767e-05,2]
[347719109,1736080258111,-500.0,8.767e-05,2]
[347719110,1736080258120,-500.0,8.767e-05,2]
[347719111,1736080258130,-457.93709052,8.767e-05,2]
[347719112,1736080258139,-500.0,8.767e-05,2]
[347719113,1736080258149,-500.0,8.767e-05,2]
[347719114,1736080258158,-500.0,8.767e-05,2]
[347719115,1736080258169,-500.0,8.767e-05,2]
[347719116,1736080258177,-530.25,8.767e-05,2]
[347719117,1736080258187,-500.0,8.767e-05,2]
[347719118,1736080258197,-522.05,8.767e-05,2]
[347719119,1736080258206,-500.0,8.767e-05,2]
[347719120,1736080258218,-500.0,8.767e-05,2]
[347719121,1736080258227,-500.0,8.767e-05,2]
[347719122,1736080258237,-500.0,8.767e-05,2]
[347719123,1736080258246,-500.0,8.767e-05,2]
[347719124,1736080258255,-600.43,8.767e-05,2]
[347719125,1736080258264,-500.0,8.767e-05,2]
[347719126,1736080258274,-500.0,8.767e-05,2]
[347719127,1736080258283,-500.0,8.767e-05,2]
[347719128,1736080258292,-832.35,8.767e-05,2]
[347719129,1736080258301,-500.0,8.767e-05,2]
[347719130,1736080258311,-625.59,8.767e-05,2]
[347719131,1736080258320,-500.0,8.767e-05,2]
[347719132,1736080258330,-500.0,8.767e-05,2]
[347719133,1736080258339,-628.84671779,8.767e-05,2]
[347719134,1736080258348,-500.0,8.767e-05,2]
[347719135,1736080258358,-500.0,8.767e-05,2]
[347719136,1736080258367,-500.0,8.767e-05,2]
[347719137,1736080258376,-500.0,8.767e-05,2]
[347719138,1736080258386,-500.0,8.767e-05,2]
[347719139,1736080258395,-500.0,8.767e-05,2]
[347719140,1736080258404,-500.0,8.767e-05,2]
[347719141,1736080258413,-500.0,8.767e-05,2]
[347719142,1736080258423,-813.5,8.767e-05,2]
[347719143,1736080258432,-500.0,8.767e-05,2]
[347719144,1736080258441,-500.0,8.767e-05,2]
[347719145,1736080258451,-818.24,8.767e-05,2]
[347719146,1736080258461,-500.0,8.767e-05,2]
[347719147,1736080258470,-6082.16,8.767e-05,2]
[347719148,1736080258479,-500.0,8.767e-05,2]
[347719149,1736080258488,-500.0,8.767e-05,2]
[347719150,1736080258498,-500.0,8.767e-05,2]
[347719151,1736080258508,-500.0,8.767e-05,2]
[347719152,1736080258517,-869.6,8.767e-05,2]
[347719153,1736080258526,-500.0,8.767e-05,2]
[347719154,1736080258536,-500.0,8.767e-05,2]
[347719155,1736080258545,-500.0,8.767e-05,2]
[347719156,1736080258554,-613.5,8.767e-05,2]
[347719157,1736080258563,-500.0,8.767e-05,2]
[347719158,1736080258573,-500.0,8.767e-05,2]
[347719159,1736080258582,-500.0,8.767e-05,2]
[347719160,1736080258591,-500.0,8.767e-05,2]
[347719161,1736080258600,-500.0,8.767e-05,2]
[347719162,1736080258610,-500.0,8.767e-05,2]
[347719163,1736080258619,-500.0,8.767e-05,2]
[347719164,1736080258629,-500.0,8.767e-05,2]
[347719165,1736080258639,-2245.29,8.767e-05,2]
[347719166,1736080258648,-500.0,8.767e-05,2]
[347719167,1736080258658,-500.0,8.767e-05,2]
[347719168,1736080258667,-500.0,8.767e-05,2]
[347719169,1736080258676,-500.0,8.767e-05,2]
[347719170,1736080258685,-500.0,8.767e-05,2]
[347719171,1736080258695,-500.0,8.767e-05,2]
[347719172,1736080258703,-500.0,8.767e-05,2]
[347719173,1736080258712,-390.29300779,8.767e-05,2]
[347719174,1736080258722,-500.0,8.767e-05,2]
[347719175,1736080258731,-581.99,8.767e-05,2]
[347719176,1736080258740,-500.0,8.767e-05,2]
[347719177,1736080258750,-500.0,8.767e-05,2]
[347719178,1736080258759,-500.0,8.767e-05,2]
[347719179,1736080258768,-500.0,8.767e-05,2]
[347719180,1736080258778,-500.0,8.767e-05,2]
[347719181,1736080258787,-544.32,8.767e-05,2]
[347719182,1736080258796,-500.0,8.767e-05,2]
[347719183,1736080258806,-500.0,8.767e-05,2]
[347719184,1736080258815,-500.0,8.767e-05,2]
[347719185,1736080258824,-813.47,8.767e-05,2]
[347719186,1736080258834,-264.57169608,8.767e-05,2]
[347719187,1736080258843,-500.0,8.767e-05,2]
[347719188,1736080258852,-500.0,8.767e-05,2]
[347719189,1736080258862,-500.0,8.767e-05,2]
[347719190,1736080258871,-500.0,8.767e-05,2]
[347719191,1736080258881,-500.0,8.767e-05,2]
[347719192,1736080258890,-831.66,8.767e-05,2]
[347719193,1736080258899,-500.0,8.767e-05,2]
[347719194,1736080258908,-500.0,8.767e-05,2]
[347719195,1736080258917,-500.0,8.767e-05,2]
[347719196,1736080258926,-500.0,8.767e-05,2]
[347719197,1736080258935,-500.0,8.767e-05,2]
[347719198,1736080258945,-500.0,8.767e-05,2]
[347719199,1736080258954,-500.0,8.767e-05,2]
[347719200,1736080258963,-500.0,8.767e-05,2]
[347719201,1736080258973,-500.0,8.767e-05,2]
[347719202,1736080258982,-500.0,8.767e-05,2]
[347719203,1736080258992,-500.0,8.767e-05,2]
[347719204,1736080259001,-500.0,8.767e-05,2]
[347719205,1736080259011,-500.0,8.767e-05,2]
[347719206,1736080259020,-500.0,8.767e-05,2]
[347719207,1736080259030,-2486.44,8.767e-05,2]
[347719208,1736080259039,-500.0,8.767e-05,2]
[347719209,1736080259049,-500.0,8.767e-05,2]
[347719210,1736080259058,-500.0,8.767e-05,2]
[347719211,1736080259067,-593.4,8.767e-05,2]
[347719212,1736080259080,-500.0,8.767e-05,2]
[347719213,1736080259089,-500.0,8.767e-05,2]
[347719214,1736080259098,-500.0,8.767e-05,2]
[347719215,1736080259108,-500.0,8.767e-05,2]
[347719216,1736080259117,-500.0,8.767e-05,2]
[347719217,1736080259126,-500.0,8.767e-05,2]
[347719218,1736080259135,-500.0,8.767e-05,2]
[347719219,1736080259145,-500.0,8.767e-05,2]
[347719220,1736080259154,-500.0,8.767e-05,2]
[347719221,1736080259164,-500.0,8.767e-05,2]
[347719222,1736080259173,-500.0,8.767e-05,2]
[347719223,1736080259183,-500.0,8.767e-05,2]
[347719224,1736080259192,-1602.77,8.767e-05,2]
[347719225,1736080259201,-500.0,8.767e-05,2]
[347719226,1736080259210,-500.0,8.767e-05,2]
[347719227,1736080259220,-500.0,8.767e-05,2]
[347719228,1736080259229,-894.44,8.767e-05,2]
[347719229,1736080259238,-500.0,8.767e-05,2]
[347719230,1736080259247,-500.0,8.767e-05,2]
[347719231,1736080259257,-500.0,8.767e-05,2]
[347719232,1736080259266,-500.0,8.767e-05,2]
[347719233,1736080259275,-746.86,8.767e-05,2]
[347719234,1736080259285,-500.0,8.767e-05,2]
[347719235,1736080259294,-500.0,8.767e-05,2]
[347719236,1736080259303,-503.47,8.767e-05,2]
[347719237,1736080259313,-500.0,8.767e-05,2]
[347719238,1736080259322,-500.0,8.767e-05,2]
[347719239,1736080259331,-500.0,8.767e-05,2]
[347719240,1736080259340,-1850.61,8.767e-05,2]
[347719241,1736080259350,-1058.88,8.767e-05,2]
[347719242,1736080259359,-500.0,8.767e-05,2]
[347719243,1736080259369,-976.39,8.767e-05,2]
[347719244,1736080259378,-500.0,8.767e-05,2]
[347719245,1736080259387,-500.0,8.767e-05,2]
[347719246,1736080259396,-500.0,8.767e-05,2]
[347719247,1736080259405,-785.66,8.767e-05,2]
[347719248,1736080259414,-10023.3,8.767e-05,2]
[347719249,1736080259424,-500.0,8.767e-05,2]
[347719250,1736080259433,-500.0,8.767e-05,2]
[347719251,1736080259442,-500.0,8.767e-05,2]
[347719252,1736080259451,-500.0,8.767e-05,2]
[347719253,1736080259461,-863.14,8.767e-05,2]
[347719254,1736080259470,-1124.55,8.767e-05,2]
[347719255,1736080259479,-753.99,8.767e-05,2]
[347719256,1736080259487,-500.0,8.767e-05,2]
[347719257,1736080259497,-500.0,8.767e-05,2]
[347719258,1736080259506,-500.0,8.767e-05,2]
[347719259,1736080259516,-500.0,8.767e-05,2]
[347719260,1736080259525,-500.0,8.767e-05,2]
[347719261,1736080259534,-500.0,8.767e-05,2]
[347719262,1736080259543,-950.36,8.767e-05,2]
[347719263,1736080259552,-500.0,8.767e-05,2]
[347719264,1736080259562,-731.56,8.767e-05,2]
[347719265,1736080259571,-535.78,8.767e-05,2]
[347719266,1736080259579,-668.64,8.767e-05,2]
[347719267,1736080259589,-500.0,8.767e-05,2]
[347719268,1736080259598,-785.58,8.767e-05,2]
[347719269,1736080259607,-1650.61,8.767e-05,2]
[347719270,1736080259616,-500.0,8.767e-05,2]
[347719271,1736080259626,-722.21,8.767e-05,2]
[347719272,1736080259635,-991.98,8.767e-05,2]
[347719273,1736080259647,-500.0,8.767e-05,2]
[347719274,1736080259656,-511.2,8.767e-05,2]
[347719275,1736080259664,-500.0,8.767e-05,2]
[347719276,1736080259673,-500.0,8.767e-05,2]
[347719277,1736080259682,-500.0,8.767e-05,2]
[347719278,1736080259691,-500.0,8.767e-05,2]
[347719279,1736080259700,-500.0,8.767e-05,2]
[347719280,1736080259710,-500.0,8.767e-05,2]
[347719281,1736080259719,-500.0,8.767e-05,2]
[347719282,1736080259728,-732.45,8.767e-05,2]
[347719283,1736080259737,-1050.73,8.767e-05,2]
[347719284,1736080259747,-503.66,8.767e-05,2]
[347719285,1736080259756,-500.0,8.767e-05,2]
[347719286,1736080259765,-500.0,8.767e-05,2]
[347719287,1736080259774,-500.0,8.767e-05,2]
[347719288,1736080259783,-1232.69,8.767e-05,2]
[347719289,1736080259792,-500.0,8.767e-05,2]
[347719290,1736080259801,-773.19,8.767e-05,2]
[347719291,1736080259810,-500.0,8.767e-05,2]
[347719292,1736080259819,-759.87,8.767e-05,2]
[347719293,1736080259827,-500.0,8.767e-05,2]
[347719294,1736080259836,-500.0,8.767e-05,2]
[347719295,1736080259846,-500.0,8.767e-05,2]
[347719296,1736080259855,-354.50866912,8.767e-05,2]
[347719297,1736080259864,-309.21461397,8.767e-05,2]
[347719298,1736080259873,-500.0,8.767e-05,2]
[347719299,1736080259882,-2193.02,8.767e-05,2]
[347719300,1736080259892,-860.49,8.767e-05,2]
[347719301,1736080259904,-766.35,8.767e-05,2]
[347719302,1736080259916,-1210.17,8.767e-05,2]
[347719303,1736080259928,-1591.42,8.767e-05,2]
[347719304,1736080259938,-500.0,8.767e-05,2]
[347719305,1736080259948,-739.43,8.767e-05,2]
[347719306,1736080259961,-1271.87,8.767e-05,2]
[347719307,1736080259972,-500.0,8.767e-05,2]
[347719308,1736080259984,-500.0,8.767e-05,2]
[347719309,1736080259996,-1196.04,8.767e-05,2]
[347719310,1736080260009,-500.0,8.767e-05,2]
[347719311,1736080260021,-852.87,8.767e-05,2]
[347719312,1736080260032,-2136.27,8.767e-05,2]
[347719313,1736080260043,-500.0,8.767e-05,2]
[347719314,1736080260054,-500.0,8.767e-05,2]
[347719315,1736080260065,-500.0,8.767e-05,2]
[347719316,1736080260080,-511.67,8.767e-05,2]
[347719317,1736080260091,-708.89,8.767e-05,2]